bitfinex/quotes_ETHUSD_20250424
["timestamp","ask_amount","ask_price","bid_price","bid_amount"]
[1745486222991,0.5731,1743.2,1742.8,0.7625]
[1745486223412,0.5731,1743.5,1742.8,6.50029527]
[1745486223718,0.5731,1743.5,1742.8,0.7625]
[1745486224771,1.00673598,1743.5,1742.8,0.7625]
[1745486225017,1.00673598,1743.5,1742.8,3.7625]
[1745486225217,0.4094744,1743.7,1742.7,3.76264952]
[1745486225218,0.9825744,1743.7,1743.0,3.7872]
[1745486225515,0.9825744,1743.7,1743.1,5.88]
[1745486226223,0.4094744,1743.7,1743.2,0.7872]
[1745486226584,0.4094744,1743.7,1743.2,3.7872]
[1745486227182,0.5731,1743.6,1743.1,5.88]
[1745486227408,0.5731,1743.6,1743.2,0.588]
[1745486227717,0.4094744,1743.7,1743.3,0.8082]
[1745486227936,0.9825744,1743.7,1743.2,3.588]
[1745486228107,0.9825744,1743.7,1743.2,0.588]
[1745486228279,0.5731,1743.6,1743.1,5.88]
[1745486228921,0.5731,1743.5,1743.1,5.88]
[1745486229225,0.5731,1743.4,1743.1,5.88]
[1745486229405,0.5731,1743.4,1742.1,5.73996963]
[1745486229406,0.5731,1743.2,1742.5,5.878]
[1745486230625,0.5731,1743.2,1742.7,0.7521]
[1745486231126,0.5731,1743.6,1742.7,0.7521]
[1745486232233,0.5731,1743.6,1742.8,3.0]
[1745486232428,0.5731,1743.6,1742.9,0.3]
[1745486232766,0.4094744,1743.7,1743.2,3.76264952]
[1745486232914,0.4094744,1743.7,1743.3,3.0]
[1745486233110,0.4094744,1743.7,1743.1,3.7719]
[1745486233551,0.4094744,1743.7,1743.0,5.867]
[1745486233552,0.5731,1743.6,1743.0,5.867]
[1745486233851,0.5731,1743.6,1743.0,8.45419]
[1745486235354,3.76264952,1743.6,1743.0,8.45419]
[1745486235556,0.5731,1743.5,1743.0,5.867]
[1745486236016,0.5731,1743.3,1743.0,5.867]
[1745486236215,0.5731,1743.3,1742.6,6.53821]
[1745486244359,0.5731,1743.3,1742.7,0.8124]
[1745486244966,0.5731,1743.3,1742.7,3.8124]
[1745486245119,0.5731,1743.3,1742.8,0.38124]
[1745486245557,0.5731,1743.6,1742.9,0.7582]
[1745486246373,0.5731,1743.6,1743.0,3.0]
[1745486246673,0.5731,1743.6,1743.1,5.868]
[1745486246852,0.5731,1743.6,1743.2,3.7948]
[1745486247053,0.5731,1743.6,1743.3,0.37948]
[1745486247253,0.4094744,1743.7,1743.3,0.37948]
[1745486247457,0.4094744,1743.7,1743.4,3.0]
[1745486247628,0.4094744,1743.7,1743.5,0.7945]
[1745486249225,0.9825744,1743.7,1743.3,1.20028]
[1745486249620,0.4094744,1743.7,1743.3,1.20028]
[1745486249865,0.4094744,1743.7,1743.4,3.0]
[1745486250170,0.4094744,1743.7,1743.5,0.3]
[1745486250532,0.4094744,1743.7,1743.3,1.20028]
[1745486252434,0.5731,1744.2,1743.6,3.76264952]
[1745486252627,0.5731,1744.2,1743.7,5.866]
[1745486253245,0.5731,1744.4,1743.8,7.51324952]
[1745486253444,0.5731,1744.4,1743.9,0.75132495]
[1745486253640,0.5731,1744.4,1743.7,5.866]
[1745486254385,3.76264952,1744.4,1743.7,5.866]
[1745486254678,0.5731,1744.3,1743.7,5.866]
[1745486255040,0.5731,1744.3,1743.3,0.37948]
[1745486255041,0.5731,1744.1,1743.3,0.37948]
[1745486255274,0.5731,1744.1,1743.3,5.866]
[1745486255584,0.5731,1744.0,1743.3,5.866]
[1745486257999,0.5731,1743.9,1743.3,5.866]
[1745486260657,0.5731,1743.8,1743.3,5.866]
[1745486263176,0.5731,1743.8,1743.4,3.0]
[1745486263387,0.5731,1743.8,1743.5,0.3]
[1745486264378,0.5731,1743.8,1743.3,5.866]
[1745486271176,0.5731,1743.7,1743.3,5.866]
[1745486271598,0.5731,1743.7,1743.0,3.0]
[1745486272190,3.76264952,1743.6,1742.9,5.857]
[1745486272523,0.5731,1743.1,1742.5,5.857]
[1745486272728,0.5731,1743.0,1742.3,5.857]
[1745486273277,0.5731,1742.8,1742.3,5.857]
[1745486273476,1.01135106,1742.8,1742.3,5.857]
[1745486273708,0.5731,1742.8,1742.3,5.857]
[1745486274518,0.5731,1742.8,1742.4,0.5857]
[1745486276885,0.5731,1742.7,1742.4,0.5857]
[1745486277082,0.5731,1742.7,1742.3,5.857]
[1745486277420,3.0,1742.7,1741.9,5.858]
[1745486277643,0.5731,1742.5,1741.9,5.858]
[1745486277986,0.99716371,1742.5,1741.9,5.858]
[1745486278186,0.5731,1742.4,1741.9,5.858]
[1745486278501,0.5731,1742.4,1741.9,8.3367]
[1745486279387,0.5731,1742.4,1741.9,5.858]
[1745486283922,3.98267326,1742.5,1741.9,5.858]
[1745486284127,0.5731,1742.2,1741.9,5.858]
[1745486285241,6.62722174,1742.9,1742.1,0.7871]
[1745486285242,0.5731,1742.8,1742.1,0.7871]
[1745486285398,0.5731,1742.8,1742.1,3.7871]
[1745486285604,0.5731,1742.8,1742.4,0.7871]
[1745486285800,0.5731,1743.4,1742.4,6.6471]
[1745486286536,0.5731,1743.3,1742.4,6.6471]
[1745486286751,0.5731,1743.3,1742.5,3.0]
[1745486287096,0.5731,1743.3,1742.8,0.8042]
[1745486287301,0.5731,1743.6,1743.0,6.76264952]
[1745486287537,0.5731,1743.6,1743.2,0.8042]
[1745486287710,0.5731,1744.3,1743.2,0.8042]
[1745486288087,3.0,1744.3,1743.2,0.8042]
[1745486288232,0.5731,1744.2,1743.2,0.8042]
[1745486288436,0.5731,1744.1,1743.2,0.8042]
[1745486290498,0.5731,1744.1,1743.2,7.56684952]
[1745486290700,0.5731,1744.1,1743.2,0.8042]
[1745486294756,0.5731,1744.1,1743.3,5.849]
[1745486294916,3.0,1744.1,1743.3,5.849]
[1745486295117,0.5731,1743.9,1743.4,0.5849]
[1745486296168,0.8,1743.8,1743.4,0.5849]
[1745486296455,0.5731,1743.9,1743.4,0.5849]
[1745486297327,0.5731,1743.8,1743.3,5.849]
[1745486299369,0.5731,1743.6,1743.3,5.849]
[1745486299574,0.5731,1743.6,1743.1,0.67626495]
[1745486299739,0.5731,1743.6,1742.9,5.848]
[1745486301176,1.1231,1743.5,1742.9,5.848]
[1745486301476,0.5731,1743.3,1742.9,5.848]
[1745486301660,0.5731,1743.3,1743.0,0.5848]
[1745486302184,0.5731,1743.3,1742.9,5.848]
[1745486303352,1.0123801,1743.3,1742.9,5.848]
[1745486304235,0.5731,1743.3,1742.9,5.848]
[1745486306278,0.8,1743.2,1742.9,5.848]
[1745486312773,1.3731,1743.2,1742.9,5.848]
[1745486312973,1.3731,1743.2,1742.9,6.4328]
[1745486321403,0.8,1743.2,1742.9,6.4328]
[1745486321937,0.8,1743.2,1743.1,0.7988]
[1745486329206,0.5731,1743.6,1743.1,0.7988]
[1745486331807,0.5731,1743.6,1743.0,3.0]
[1745486332007,0.5731,1743.6,1743.1,0.3]
[1745486332753,0.5731,1743.6,1742.9,6.4328]
[1745486334550,0.8,1743.5,1742.9,6.4328]
[1745486335452,0.5731,1743.4,1742.9,6.4328]
[1745486341669,0.5731,1743.4,1742.9,5.848]
[1745486345357,1.33370356,1743.4,1742.9,5.848]
[1745486345785,0.5731,1743.3,1742.9,5.848]
[1745486346279,0.99718818,1743.3,1742.9,5.848]
[1745486346437,1.3731,1743.5,1743.0,4.54000356]
[1745486346771,0.5731,1743.5,1743.1,0.45400036]
[1745486349675,0.8,1743.4,1743.1,0.45400036]
[1745486350753,0.5731,1743.9,1743.3,0.8291]
[1745486351071,0.5731,1743.9,1743.5,3.0]
[1745486351272,0.5731,1743.9,1743.6,0.3]
[1745486357075,0.5731,1744.2,1743.6,1.1237]
[1745486357278,0.5731,1744.2,1743.6,1.88430356]
[1745486357599,0.5731,1744.2,1743.6,4.88430356]
[1745486357744,0.5731,1744.2,1743.6,10.61950806]
[1745486357939,0.5731,1744.4,1743.8,0.7778]
[1745486358199,0.5731,1744.4,1743.9,5.824]
[1745486358345,0.76060356,1744.4,1743.9,5.824]
[1745486358543,0.5731,1744.3,1743.9,5.824]
[1745486361775,0.5731,1744.1,1743.9,5.824]
[1745486362173,0.5731,1743.9,1743.8,5.824]
[1745486365932,0.5731,1743.9,1743.8,6.4064]
[1745486367143,0.5731,1744.3,1743.8,6.4064]
[1745486370722,0.5731,1744.1,1743.8,6.4064]
[1745486372327,0.5731,1744.1,1743.8,5.824]
[1745486373924,1.00500811,1744.1,1743.8,5.824]
[1745486374247,0.5731,1744.4,1743.8,5.824]
[1745486374817,0.84931688,1744.6,1743.8,5.824]
[1745486374818,0.5731,1744.2,1743.8,5.824]
[1745486375074,0.5731,1744.2,1743.8,6.4064]
[1745486375224,0.5731,1744.2,1743.8,5.824]
[1745486375629,1.01180439,1744.2,1743.8,5.824]
[1745486376963,1.33370356,1744.1,1743.7,5.824]
[1745486381569,0.5731,1744.0,1743.3,0.816]
[1745486381764,1.33370356,1743.9,1743.4,5.824]
[1745486381919,1.33370356,1743.9,1743.4,6.488]
[1745486382153,0.5731,1743.8,1743.4,5.824]
[1745486382647,0.5731,1743.8,1743.2,18.925]
[1745486382648,0.76060356,1743.7,1743.2,18.925]
[1745486382901,0.5731,1743.6,1743.3,5.824]
[1745486383694,0.76060356,1743.5,1742.8,0.7624]
[1745486383861,1.33370356,1743.0,1742.6,0.7624]
[1745486384051,1.33370356,1743.0,1742.6,1.96874]
[1745486384658,0.5731,1743.0,1742.6,1.96874]
[1745486385094,1.01312259,1743.0,1742.6,1.96874]
[1745486387374,0.5731,1743.2,1742.7,0.8168]
[1745486387549,0.76060356,1743.5,1742.7,0.8168]
[1745486387550,0.4365382,1743.3,1742.7,0.8168]
[1745486387754,0.5731,1743.4,1742.7,3.8168]
[1745486387950,0.5731,1743.4,1742.8,0.38168]
[1745486388157,0.5731,1743.4,1742.9,5.812]
[1745486389787,0.76060356,1743.3,1742.9,5.812]
[1745486389992,0.5731,1743.2,1742.9,5.812]
[1745486395231,0.42635302,1743.3,1742.9,6.5844]
[1745486395523,0.5731,1743.4,1742.9,7.24284]
[1745486395821,0.5731,1743.4,1742.9,6.47044]
[1745486396196,0.5731,1743.4,1742.9,5.812]
[1745486397396,0.5731,1743.3,1742.9,5.812]
[1745486397592,1.33370356,1743.3,1742.9,5.812]
[1745486397798,0.5731,1743.2,1742.9,5.812]
[1745486399336,0.99475441,1743.4,1742.9,6.5681]
[1745486399532,0.5731,1743.4,1743.0,0.65681]
[1745486400094,0.5731,1743.4,1743.0,1.41741356]
[1745486400300,3.0,1743.7,1743.0,1.41741356]
[1745486400301,0.5731,1743.7,1743.0,1.41741356]
[1745486400502,3.5731,1743.7,1743.0,1.41741356]
[1745486400701,0.5731,1743.6,1743.0,0.65681]
[1745486401303,0.42660391,1743.6,1742.9,6.5681]
[1745486401646,0.5731,1743.5,1742.9,6.5681]
[1745486403629,0.5731,1743.5,1742.9,5.812]
[1745486407909,0.5731,1743.5,1743.0,5.814]
[1745486408623,1.33370356,1743.5,1743.0,5.814]
[1745486408939,0.76060356,1743.1,1743.0,5.814]
[1745486409137,0.5731,1743.0,1742.5,18.925]
[1745486409335,0.76060356,1742.9,1742.5,24.739]
[1745486409512,0.5731,1742.8,1742.5,5.814]
[1745486410167,0.5731,1742.6,1742.5,5.814]
[1745486410454,0.5731,1742.6,1742.0,5.814]
[1745486410773,0.76060356,1742.5,1742.0,5.814]
[1745486411264,0.42341589,1742.7,1742.0,6.57460356]
[1745486411439,0.5731,1742.8,1742.1,3.65746036]
[1745486411645,0.5731,1742.8,1742.2,0.8163]
[1745486414024,0.5731,1742.8,1742.1,3.65746036]
[1745486414228,0.5731,1742.8,1742.1,0.65746036]
[1745486414438,0.76060356,1742.7,1742.0,6.5914]
[1745486414666,0.76060356,1742.7,1741.8,18.933]
[1745486414667,0.5731,1742.4,1741.9,5.802]
[1745486414823,0.76060356,1742.3,1741.9,5.802]
[1745486416072,0.76060356,1742.1,1741.8,18.933]
[1745486416230,0.76060356,1742.1,1741.7,5.803]
[1745486416432,0.76060356,1742.1,1741.5,5.803]
[1745486416433,0.5731,1742.0,1741.5,5.803]
[1745486416630,0.76060356,1741.9,1741.5,5.803]
[1745486416847,0.5731,1742.0,1741.5,6.3833]
[1745486417050,0.5731,1742.0,1741.5,5.803]
[1745486417677,0.5731,1741.8,1741.2,5.803]
[1745486418031,1.0002871,1741.8,1741.2,5.803]
[1745486418233,0.5731,1741.8,1741.2,6.56360356]
[1745486418433,0.5731,1741.8,1741.3,0.65636036]
[1745486419868,0.5731,1741.8,1741.2,5.803]
[1745486420571,1.0016222,1741.8,1741.2,5.803]
[1745486421872,0.5731,1741.7,1741.2,5.803]
[1745486423872,0.5731,1742.2,1741.4,1.58180356]
[1745486424071,0.5731,1742.2,1741.6,0.76060356]
[1745486424266,0.5731,1742.2,1741.7,5.805]
[1745486425180,1.01329351,1742.2,1741.7,5.805]
[1745486427191,0.44019351,1742.2,1741.7,5.805]
[1745486427372,0.5731,1742.0,1741.3,0.7964]
[1745486427568,0.5731,1742.5,1741.6,0.7964]
[1745486428071,0.5731,1742.5,1742.0,0.8161]
[1745486428271,0.5731,1742.5,1742.0,6.6211]
[1745486428606,6.03860489,1742.8,1742.1,0.66211]
[1745486429174,6.46037222,1742.8,1742.1,0.66211]
[1745486429583,7.22097578,1742.8,1742.1,0.66211]
[1745486429874,0.5731,1742.7,1742.1,0.66211]
[1745486430210,0.5731,1742.7,1742.0,5.805]
[1745486431501,0.5731,1742.7,1742.1,3.0]
[1745486433821,1.33370356,1742.5,1741.8,0.771]
[1745486433983,0.76060356,1742.3,1741.8,5.804]
[1745486434187,0.5731,1742.2,1741.8,5.804]
[1745486434396,0.5731,1742.2,1741.8,6.3844]
[1745486436014,0.5731,1742.5,1741.8,6.3844]
[1745486436502,1.33370356,1742.4,1741.8,6.3844]
[1745486438646,0.5731,1743.0,1742.0,0.76060356]
[1745486438808,0.5731,1743.0,1742.2,0.76060356]
[1745486439008,0.5731,1743.0,1742.3,5.805]
[1745486439218,0.5731,1743.0,1742.4,0.5805]
[1745486440042,0.5731,1743.0,1742.4,1.3462]
[1745486441044,0.5731,1743.0,1742.4,10.84580144]
[1745486441244,0.5731,1743.0,1742.5,5.73886635]
[1745486441647,0.8,1742.9,1742.5,5.73871298]
[1745486441819,0.8,1742.9,1742.6,0.5738713]
[1745486442025,0.5731,1743.2,1742.6,0.5738713]
[1745486442463,0.5731,1743.2,1742.4,10.08534882]
[1745486442959,0.5731,1743.2,1742.4,10.08530383]
[1745486443261,0.5731,1743.2,1742.4,4.3462]
[1745486443559,0.5731,1743.1,1742.4,0.5805]
[1745486446975,0.5731,1742.9,1742.3,5.805]
[1745486447137,3.88060159,1743.5,1742.4,3.7655]
[1745486447138,0.5731,1743.2,1742.4,3.7655]
[1745486447338,0.5731,1743.2,1742.4,9.5046943]
[1745486447652,0.5731,1743.2,1742.4,3.7655]
[1745486447862,0.5731,1743.2,1742.5,5.73886551]
[1745486448171,0.5731,1743.2,1742.6,0.57388655]
[1745486448372,0.5731,1743.2,1742.7,5.792]
[1745486448924,0.5731,1743.0,1742.7,5.792]
[1745486449966,0.5731,1742.8,1742.2,5.792]
[1745486450755,0.5731,1743.2,1742.2,6.563]
[1745486451063,0.5731,1743.2,1742.3,3.6563]
[1745486451362,3.75493193,1742.9,1742.3,0.6563]
[1745486451561,0.5731,1742.8,1742.3,5.793]
[1745486453972,0.8,1743.1,1742.3,5.793]
[1745486454269,0.5731,1743.0,1742.4,0.7834]
[1745486456456,0.5731,1743.0,1742.3,5.793]
[1745486457996,0.5731,1743.0,1742.4,0.7979]
[1745486459195,0.5731,1743.0,1742.4,0.65909]
[1745486459387,0.5731,1743.0,1742.3,5.793]
[1745486459693,1.3731,1743.1,1742.4,0.7728]
[1745486461094,1.3731,1743.1,1742.6,0.7857]
[1745486461273,1.3731,1743.1,1742.7,5.792]
[1745486461472,1.3731,1743.1,1742.7,6.44977]
[1745486461673,1.3731,1743.1,1742.7,5.792]
[1745486462366,0.5731,1743.0,1742.3,5.792]
[1745486462775,0.5731,1742.8,1742.3,5.792]
[1745486463364,0.5731,1742.6,1741.8,1.3545]
[1745486463558,0.5731,1742.6,1742.0,5.792]
[1745486463758,0.55,1742.5,1742.0,5.792]
[1745486464002,0.5731,1742.4,1742.0,5.792]
[1745486464303,0.5731,1742.2,1742.0,5.792]
[1745486464595,0.5731,1742.4,1741.7,5.792]
[1745486465586,0.5731,1742.4,1741.8,0.7653]
[1745486467808,15.58553682,1742.9,1741.8,0.7653]
[1745486467809,0.5731,1743.3,1742.3,3.75493193]
[1745486468111,0.5731,1743.0,1742.4,6.99879319]
[1745486468320,0.5731,1743.0,1742.5,5.793]
[1745486470118,0.8,1742.9,1742.5,5.793]
[1745486471874,0.2995051,1743.6,1742.8,0.7873]
[1745486472080,0.5731,1743.5,1742.9,3.75493193]
[1745486472281,6.03860489,1744.0,1743.0,6.16749319]
[1745486472484,0.5731,1743.9,1743.0,6.16749319]
[1745486472688,3.5731,1743.9,1743.0,6.16749319]
[1745486473010,0.5731,1743.9,1743.0,6.16749319]
[1745486473181,0.5731,1743.9,1743.1,0.7947]
[1745486473389,0.5731,1743.9,1743.1,1.49091932]
[1745486473626,4.32803193,1743.9,1743.1,1.49091932]
[1745486473923,0.5731,1743.8,1743.0,6.16749319]
[1745486474290,0.5731,1743.8,1743.0,5.792]
[1745486476427,0.5731,1743.6,1743.0,5.792]
[1745486478014,0.5731,1743.6,1742.8,6.5619]
[1745486481449,0.5731,1743.6,1742.9,3.0]
[1745486482042,0.5731,1743.6,1742.9,6.75493193]
[1745486482206,0.5731,1743.6,1743.0,0.67549319]
[1745486483134,0.5731,1743.6,1742.9,3.0]
[1745486485752,0.5731,1743.9,1743.1,3.0]
[1745486486524,0.5731,1743.9,1743.0,1.20948405]
[1745486486859,0.5731,1743.8,1743.0,0.7801]
[1745486487015,0.5731,1743.8,1742.9,3.0]
[1745486487219,0.5731,1743.8,1743.0,0.3]
[1745486488372,0.5731,1743.8,1742.9,3.0]
[1745486489567,0.5731,1743.5,1742.8,5.784]
[1745486493632,0.5731,1743.4,1742.8,5.784]
[1745486494073,0.5731,1743.3,1742.8,5.784]
[1745486498102,4.18079889,1743.5,1742.8,2.0]
[1745486498103,0.5731,1743.0,1742.8,2.0]
[1745486498260,0.5731,1742.9,1742.8,2.0]
[1745486498464,4.32803193,1742.9,1742.8,2.0]
[1745486498783,7.87803193,1742.9,1742.8,2.0]
[1745486499100,7.87803193,1742.9,1742.8,1.52286575]
[1745486499264,7.30493193,1742.9,1742.8,0.94976575]
[1745486500403,8.01779231,1742.9,1742.8,0.94976575]
[1745486501704,7.73841713,1742.9,1742.8,0.94976575]
[1745486502016,3.9834852,1742.9,1742.8,0.94976575]
[1745486502166,7.73841713,1742.9,1742.8,0.94976575]
[1745486505885,3.9834852,1742.9,1742.8,0.94976575]
[1745486506627,3.4334852,1742.9,1742.8,0.94976575]
[1745486508822,0.4334852,1742.9,1742.8,0.94976575]
[1745486509115,0.55,1743.0,1742.8,0.94976575]
[1745486509319,3.29960478,1743.1,1742.8,0.94976575]
[1745486509485,0.29960478,1743.1,1742.8,0.94976575]
[1745486509690,6.03860489,1743.3,1742.8,0.94976575]
[1745486510882,0.28517166,1743.7,1742.8,0.94976575]
[1745486511081,3.75493193,1743.7,1742.8,0.94976575]
[1745486511281,3.55,1743.6,1742.8,0.94976575]
[1745486511992,9.53293193,1743.9,1742.9,6.5422]
[1745486512427,0.55,1743.8,1742.9,6.5422]
[1745486512830,5.778,1743.9,1743.1,0.751]
[1745486517218,6.20020053,1743.9,1743.1,0.751]
[1745486518091,5.778,1743.9,1743.1,0.751]
[1745486518487,9.53293193,1743.9,1743.1,0.751]
[1745486519713,3.55,1743.8,1743.1,0.751]
[1745486520381,9.53293193,1743.9,1743.1,0.751]
[1745486520382,6.20612884,1743.9,1743.1,0.751]
[1745486523028,6.20612884,1743.9,1743.1,6.527]
[1745486523424,6.20612884,1743.9,1743.2,0.7743]
[1745486524827,3.75493193,1743.6,1743.2,0.7743]
[1745486525207,3.75493193,1743.6,1743.1,5.776]
[1745486526555,7.30493193,1743.8,1743.1,5.776]
[1745486526710,7.30493193,1743.8,1743.1,6.43508]
[1745486527048,3.55,1743.8,1743.1,6.43508]
[1745486527207,3.0,1743.8,1743.2,0.8215]
[1745486527721,3.75493193,1743.7,1743.2,0.8215]
[1745486529055,9.96106077,1743.9,1743.2,0.8215]
[1745486529214,9.96106077,1743.9,1743.2,1.48125]
[1745486532347,9.96106077,1743.9,1743.3,0.758]
[1745486533233,3.75493193,1743.7,1743.3,0.758]
[1745486534553,6.75493193,1743.7,1743.3,0.758]
[1745486534857,3.75493193,1743.7,1743.3,0.758]
[1745486535362,3.75493193,1743.5,1743.1,6.5999]
[1745486535523,3.0,1743.4,1743.1,6.5999]
[1745486536427,3.55,1743.6,1743.1,6.5999]
[1745486536628,0.42209524,1743.6,1743.1,6.5999]
[1745486536828,3.75493193,1743.7,1743.1,6.5999]
[1745486537052,3.75493193,1743.7,1743.1,7.25989]
[1745486538451,3.75493193,1743.7,1743.2,0.8061]
[1745486538793,3.0,1743.8,1743.2,0.8061]
[1745486540483,3.42660289,1743.8,1743.2,0.8061]
[1745486545648,0.42660289,1743.8,1743.2,0.8061]
[1745486545862,3.0,1743.9,1743.2,0.8061]
[1745486547146,3.0,1743.9,1743.3,0.8272]
[1745486548291,3.4285874,1743.9,1743.3,0.8272]
[1745486548616,3.55,1743.6,1743.3,0.8272]
[1745486548771,6.995,1743.6,1743.1,0.8302]
[1745486552210,0.55,1743.5,1743.1,0.8302]
[1745486552405,3.4285874,1743.9,1743.1,0.8302]
[1745486552742,3.4285874,1743.9,1742.8,6.71876575]
[1745486552743,0.55,1743.8,1742.9,0.7795]
[1745486553004,0.55,1743.6,1742.8,0.94976575]
[1745486553219,3.0,1743.1,1742.8,0.94976575]
[1745486553371,0.55,1743.0,1742.8,0.94976575]
[1745486554508,3.55,1743.2,1742.8,0.94976575]
[1745486560490,3.98725929,1743.2,1742.8,0.94976575]
[1745486563326,3.43725929,1743.2,1742.8,0.94976575]
[1745486563527,3.43725929,1743.2,1742.9,0.7598]
[1745486564386,0.43725929,1743.2,1742.9,0.7598]
[1745486564603,6.03860489,1743.3,1742.9,0.7598]
[1745486564809,18.933,1743.8,1742.9,0.7598]
[1745486565086,3.0,1743.7,1742.9,0.7598]
[1745486565926,0.55,1743.6,1742.9,0.7598]
[1745486566134,0.97441863,1743.6,1742.9,0.7598]
[1745486566629,0.42441863,1743.6,1742.9,0.7598]
[1745486566808,3.0,1743.7,1742.9,0.7598]
[1745486567416,0.55,1743.6,1742.9,0.7598]
[1745486575933,0.29950048,1743.7,1742.9,0.7598]
[1745486578148,0.55,1743.6,1742.9,0.7598]
[1745486579870,0.55,1743.7,1742.9,0.7598]
[1745486581382,3.0,1743.6,1742.9,0.7598]
[1745486582438,0.55,1743.5,1742.9,0.7598]
[1745486585072,3.0,1743.6,1742.9,0.7598]
[1745486585378,0.55,1743.5,1742.9,0.7598]
[1745486590384,3.0,1743.6,1742.9,0.7598]
[1745486591869,3.87659553,1743.8,1742.9,0.7598]
[1745486591870,0.43159553,1743.8,1742.9,0.7598]
[1745486592065,6.03860489,1743.9,1742.9,0.7598]
[1745486592398,6.03860489,1743.9,1743.0,0.7728]
[1745486592601,3.0,1743.8,1743.0,0.7728]
[1745486592809,6.03860489,1743.9,1743.0,0.7728]
[1745486593211,6.03860489,1743.9,1743.0,5.73701607]
[1745486593418,0.42905597,1744.0,1743.1,3.8157]
[1745486593582,0.55,1744.3,1743.3,0.8157]
[1745486593788,0.55,1744.1,1743.3,0.8157]
[1745486594017,3.55,1744.1,1743.3,0.8157]
[1745486594186,0.55,1744.1,1743.3,0.8157]
[1745486595416,0.28749401,1744.2,1743.4,5.761]
[1745486595612,0.42842267,1744.3,1743.6,0.7747]
[1745486595775,5.761,1744.4,1743.6,0.7747]
[1745486595975,3.0,1744.3,1743.6,0.7747]
[1745486596170,0.55,1744.3,1743.6,0.7747]
[1745486596442,5.761,1744.4,1743.6,0.7747]
[1745486596580,3.5761,1744.3,1743.6,0.7747]
[1745486596779,3.0,1744.3,1743.6,0.7747]
[1745486596994,3.28418695,1744.3,1743.6,0.7747]
[1745486597391,0.55,1744.2,1743.6,0.7747]
[1745486597591,0.55,1744.0,1743.6,0.7747]
[1745486598074,9.03860489,1744.1,1743.6,0.7747]
[1745486600383,0.55,1744.0,1743.6,0.7747]
[1745486602023,9.03860489,1744.1,1743.6,0.7747]
[1745486603038,9.03860489,1744.1,1743.1,5.752]
[1745486603844,0.55,1744.0,1743.1,5.752]
[1745486604042,0.55,1744.0,1743.2,0.5752]
[1745486604393,3.0,1743.9,1743.2,5.751]
[1745486605592,0.55,1743.9,1743.2,5.751]
[1745486606202,3.0,1744.0,1743.2,5.751]
[1745486606605,0.55,1743.9,1743.2,5.751]
[1745486606804,3.0,1744.0,1743.3,0.5751]
[1745486609054,0.55,1743.9,1743.2,5.751]
[1745486610106,3.995,1743.9,1743.2,5.751]
[1745486611249,4.29442733,1743.9,1743.2,5.751]
[1745486612309,3.995,1743.9,1743.2,5.751]
[1745486613058,6.995,1743.7,1742.8,6.70076575]
[1745486613262,3.55,1743.5,1742.8,6.70076575]
[1745486614555,3.55,1743.3,1742.8,6.70076575]
[1745486615058,3.98259384,1743.3,1742.8,6.70076575]
[1745486615547,0.98259384,1743.3,1742.8,6.70076575]
[1745486616750,0.43259384,1743.3,1742.8,6.70076575]
[1745486616913,3.0,1743.6,1742.9,0.67007658]
[1745486617449,0.55,1743.5,1742.9,0.67007658]
[1745486618011,0.97940885,1743.5,1742.9,0.67007658]
[1745486619015,0.42940885,1743.5,1742.9,0.67007658]
[1745486619214,3.0,1743.6,1742.9,0.67007658]
[1745486619524,6.03860489,1743.7,1742.9,3.67007658]
[1745486620652,3.29944044,1744.1,1742.9,9.40743248]
[1745486620653,0.29944044,1744.1,1742.9,9.40743248]
[1745486620807,5.752,1744.2,1742.9,3.67007658]
[1745486621005,3.0,1744.1,1742.9,3.67007658]
[1745486622216,3.42230727,1744.1,1742.9,9.84072222]
[1745486622418,3.42230727,1744.1,1743.0,0.98407222]
[1745486622617,3.42230727,1744.1,1742.9,4.10327294]
[1745486623369,0.55,1744.0,1742.9,3.67007658]
[1745486623777,3.42230727,1744.1,1742.9,3.65909452]
[1745486624344,3.42230727,1744.1,1742.9,9.39663974]
[1745486624530,3.42230727,1744.1,1742.9,3.65909452]
[1745486624730,3.42230727,1744.1,1743.0,0.36590945]
[1745486625945,3.42230727,1744.1,1743.1,3.0]
[1745486626130,3.42230727,1744.1,1743.2,5.751]
[1745486626659,3.0,1744.1,1743.2,5.751]
[1745486627459,0.28418695,1744.3,1743.2,5.751]
[1745486627671,3.84937347,1744.4,1743.3,0.5751]
[1745486628235,4.13930663,1744.4,1743.3,0.5751]
[1745486628631,0.29937347,1744.4,1743.4,5.7358215]
[1745486628837,0.7259953,1744.4,1743.4,3.43027884]
[1745486629032,0.7259953,1744.4,1743.5,0.34302788]
[1745486629342,5.744,1745.2,1743.7,3.0]
[1745486629552,5.744,1745.2,1743.6,5.744]
[1745486629867,3.0,1745.1,1743.7,3.0]
[1745486630071,0.55,1745.0,1743.7,3.0]
[1745486630276,3.43737773,1745.1,1743.8,0.3]
[1745486630472,3.72962487,1745.1,1743.8,0.3]
[1745486630771,0.55,1745.0,1743.8,0.3]
[1745486631359,0.55,1745.0,1743.9,3.0]
[1745486631672,0.55,1745.0,1744.0,5.743]
[1745486631842,0.55,1745.0,1744.1,0.5743]
[1745486634648,6.03860489,1745.3,1744.1,9.30781454]
[1745486634946,3.0,1745.2,1744.2,5.73325076]
[1745486635165,3.0,1745.2,1744.1,9.74633195]